[Event "Late-Titled-Tuesday-Blitz-June-18-2024"]
[Site "Chess.com"]
[Date "2024.06.18"]
[Round "4"]
[White "AlivodicDario"]
[Black "topce"]
[Result "0-1"]
[WhiteElo "2366"]
[BlackElo "2528"]
[TimeControl "180+1"]
[EndTime "14:39:59 PDT"]
[Termination "topce won by resignation"]

1. d4 {[%clk 0:03:00.9]} 1... Nf6 {[%clk 0:02:59.3]} 2. c4 {[%clk 0:03:01.2]}
2... e6 {[%clk 0:02:59.4]} 3. Nc3 {[%clk 0:03:01.4]} 3... c5 {[%clk 0:02:58.3]}
4. d5 {[%clk 0:03:01.3]} 4... d6 {[%clk 0:02:58.2]} 5. e4 {[%clk 0:03:01.4]}
5... g6 {[%clk 0:02:57.9]} 6. f4 {[%clk 0:02:57.4]} 6... exd5 {[%clk 0:02:56.2]}
7. cxd5 {[%clk 0:02:56.5]} 7... Bg7 {[%clk 0:02:56.3]} 8. Bb5+ {[%clk
0:02:56.4]} 8... Nfd7 {[%clk 0:02:56.1]} 9. Nf3 {[%clk 0:02:54.7]} 9... O-O
{[%clk 0:02:56.1]} 10. O-O {[%clk 0:02:54.3]} 10... a6 {[%clk 0:02:45.5]} 11.
Bd3 {[%clk 0:02:53.7]} 11... b5 {[%clk 0:02:45.5]} 12. Kh1 {[%clk 0:02:48.3]}
12... c4 {[%clk 0:02:40.5]} 13. Bc2 {[%clk 0:02:48.1]} 13... Nc5 {[%clk
0:02:40]} 14. f5 {[%clk 0:02:48.2]} 14... Nbd7 {[%clk 0:02:38.5]} 15. Bg5 {[%clk
0:02:46.9]} 15... Bf6 {[%clk 0:02:31]} 16. Bf4 {[%clk 0:02:36]} 16... Ne5 {[%clk
0:02:24.4]} 17. Nxe5 {[%clk 0:02:33]} 17... Bxe5 {[%clk 0:02:20.5]} 18. Bxe5
{[%clk 0:02:24.4]} 18... dxe5 {[%clk 0:02:20.2]} 19. f6 {[%clk 0:02:24.5]} 19...
Nd7 {[%clk 0:02:14]} 20. Qf3 {[%clk 0:02:19.5]} 20... Rb8 {[%clk 0:02:13.4]} 21.
Rf2 {[%clk 0:02:18.2]} 21... Rb6 {[%clk 0:02:13.3]} 22. Raf1 {[%clk 0:02:18.3]}
22... Rxf6 {[%clk 0:02:11.1]} 23. Qg3 {[%clk 0:02:10.9]} 23... Rxf2 {[%clk
0:02:12]} 24. Rxf2 {[%clk 0:02:11.8]} 24... Qe7 {[%clk 0:02:06.1]} 25. Nd1
{[%clk 0:02:11.8]} 25... Nc5 {[%clk 0:02:02.2]} 26. Ne3 {[%clk 0:02:10.5]} 26...
Kh8 {[%clk 0:02:01.9]} 27. d6 {[%clk 0:01:56.2]} 27... Qxd6 {[%clk 0:01:59]} 28.
Nd5 {[%clk 0:01:56.8]} 28... f5 {[%clk 0:01:46.8]} 29. Qh4 {[%clk 0:01:54]}
29... f4 {[%clk 0:01:36.9]} 30. g3 {[%clk 0:01:46.3]} 30... Bb7 {[%clk
0:01:33.5]} 31. gxf4 {[%clk 0:01:39.8]} 31... Bxd5 {[%clk 0:01:16.2]} 32. fxe5
{[%clk 0:01:39.8]} 32... Qd8 {[%clk 0:01:01.2]} 33. Qxd8 {[%clk 0:01:20]} 33...
Rxd8 {[%clk 0:01:00.3]} 34. Rd2 {[%clk 0:01:06.9]} 34... Bxe4+ {[%clk
0:00:51.4]} 0-1

[Event "Late-Titled-Tuesday-Blitz-June-18-2024"]
[Site "Chess.com"]
[Date "2024.06.18"]
[Round "4"]
[White "Masterisback04"]
[Black "CruzWilliam"]
[Result "1-0"]
[WhiteElo "2121"]
[BlackElo "2435"]
[TimeControl "180+1"]
[EndTime "14:39:59 PDT"]
[Termination "Masterisback04 won by resignation"]

1. e4 {[%clk 0:03:00.9]} 1... e6 {[%clk 0:03:00.2]} 2. d4 {[%clk 0:02:59.8]}
2... d5 {[%clk 0:03:00.7]} 3. e5 {[%clk 0:03:00.1]} 3... c5 {[%clk 0:03:00.6]}
4. c3 {[%clk 0:02:59.4]} 4... Nc6 {[%clk 0:03:01.2]} 5. Nf3 {[%clk 0:02:58.6]}
5... Qb6 {[%clk 0:02:58.6]} 6. a3 {[%clk 0:02:58.7]} 6... c4 {[%clk 0:02:58.5]}
7. Nbd2 {[%clk 0:02:57]} 7... Na5 {[%clk 0:02:57]} 8. Rb1 {[%clk 0:02:50.7]}
8... Bd7 {[%clk 0:02:56.3]} 9. b4 {[%clk 0:02:50.2]} 9... cxb3 {[%clk
0:02:55.8]} 10. c4 {[%clk 0:02:50.1]} 10... Ba4 {[%clk 0:02:41.3]} 11. cxd5
{[%clk 0:02:41.9]} 11... exd5 {[%clk 0:02:39.7]} 12. Bd3 {[%clk 0:02:34.6]}
12... Qc6 {[%clk 0:02:18.9]} 13. Qe2 {[%clk 0:02:27.9]} 13... Rc8 {[%clk
0:02:09.9]} 14. O-O {[%clk 0:02:24.3]} 14... Ne7 {[%clk 0:02:03.8]} 15. e6
{[%clk 0:01:53.3]} 15... Qxe6 {[%clk 0:01:51]} 16. Bb5+ {[%clk 0:01:52.3]} 16...
Bxb5 {[%clk 0:01:47.1]} 17. Qxb5+ {[%clk 0:01:53.2]} 17... Nac6 {[%clk
0:01:44.4]} 18. Nxb3 {[%clk 0:01:39.7]} 18... f6 {[%clk 0:00:55.5]} 19. Nc5
{[%clk 0:01:35.9]} 19... Qd6 {[%clk 0:00:52.1]} 20. Re1 {[%clk 0:01:30.8]} 20...
Kf7 {[%clk 0:00:49.8]} 21. Nxb7 {[%clk 0:01:29.6]} 21... Qc7 {[%clk 0:00:48]}
22. g3 {[%clk 0:01:12.2]} 22... h5 {[%clk 0:00:46.2]} 23. Bf4 {[%clk 0:01:11.6]}
23... Qb6 {[%clk 0:00:41]} 24. Nd6+ {[%clk 0:01:10.6]} 24... Kg8 {[%clk
0:00:38.3]} 25. Nxc8 {[%clk 0:01:07.6]} 25... Nxc8 {[%clk 0:00:37.5]} 26. Qxd5+
{[%clk 0:01:06.8]} 1-0

[Event "Late-Titled-Tuesday-Blitz-June-18-2024"]
[Site "Chess.com"]
[Date "2024.06.18"]
[Round "4"]
[White "gabduschew"]
[Black "GasconJR"]
[Result "0-1"]
[WhiteElo "2360"]
[BlackElo "2643"]
[TimeControl "180+1"]
[EndTime "14:40:04 PDT"]
[Termination "GasconJR won by resignation"]

1. e4 {[%clk 0:03:00.9]} 1... e5 {[%clk 0:02:59.6]} 2. Nf3 {[%clk 0:03:01.1]}
2... Nc6 {[%clk 0:02:59.8]} 3. d4 {[%clk 0:03:01]} 3... exd4 {[%clk 0:02:59.9]}
4. Nxd4 {[%clk 0:03:01.9]} 4... Nf6 {[%clk 0:02:59.2]} 5. Nxc6 {[%clk
0:03:01.9]} 5... bxc6 {[%clk 0:03:00.1]} 6. e5 {[%clk 0:03:02.3]} 6... Nd5
{[%clk 0:03:00.7]} 7. c4 {[%clk 0:03:02.2]} 7... Bb4+ {[%clk 0:02:58.5]} 8. Nd2
{[%clk 0:02:59.1]} 8... Ne7 {[%clk 0:02:57.2]} 9. a3 {[%clk 0:02:58.5]} 9...
Bxd2+ {[%clk 0:02:55.6]} 10. Bxd2 {[%clk 0:02:58.8]} 10... O-O {[%clk
0:02:45.4]} 11. Bd3 {[%clk 0:02:57.7]} 11... Rb8 {[%clk 0:02:42]} 12. Qc2 {[%clk
0:02:53.4]} 12... Ng6 {[%clk 0:02:40.2]} 13. f4 {[%clk 0:02:53.1]} 13... d6
{[%clk 0:02:37.3]} 14. h4 {[%clk 0:02:43.2]} 14... dxe5 {[%clk 0:02:35.5]} 15.
h5 {[%clk 0:02:42.6]} 15... Nxf4 {[%clk 0:02:35.3]} 16. Bxh7+ {[%clk 0:02:41.2]}
16... Kh8 {[%clk 0:02:35.2]} 17. O-O-O {[%clk 0:02:38.1]} 17... Ne2+ {[%clk
0:01:45.7]} 18. Kb1 {[%clk 0:02:36.4]} 18... Nd4 {[%clk 0:01:42.1]} 19. Qe4
{[%clk 0:02:36.2]} 19... c5 {[%clk 0:01:25.1]} 20. h6 {[%clk 0:02:32.7]} 20...
g6 {[%clk 0:01:23.2]} 21. Bxg6 {[%clk 0:02:29.2]} 21... fxg6 {[%clk 0:01:24.1]}
22. Qxe5+ {[%clk 0:02:26.3]} 22... Qf6 {[%clk 0:01:20.3]} 23. Qxc5 {[%clk
0:02:25.9]} 23... Bf5+ {[%clk 0:01:14.7]} 24. Ka2 {[%clk 0:02:21.2]} 24... Ne6
{[%clk 0:01:04]} 25. Qxf8+ {[%clk 0:01:47]} 25... Qxf8 {[%clk 0:00:58.4]} 26.
Bc3+ {[%clk 0:01:46.7]} 26... Nd4 {[%clk 0:00:49]} 27. Rxd4 {[%clk 0:01:35.3]}
27... Kh7 {[%clk 0:00:46.9]} 28. g4 {[%clk 0:01:21.6]} 28... c5 {[%clk 0:00:36]}
29. Rf4 {[%clk 0:01:11.5]} 29... Bb1+ {[%clk 0:00:35.3]} 30. Kxb1 {[%clk
0:01:04.7]} 30... Qxf4 {[%clk 0:00:34.9]} 0-1

[Event "Late-Titled-Tuesday-Blitz-June-18-2024"]
[Site "Chess.com"]
[Date "2024.06.18"]
[Round "4"]
[White "Beaterawn"]
[Black "GlavkonVVS"]
[Result "0-1"]
[WhiteElo "2375"]
[BlackElo "2528"]
[TimeControl "180+1"]
[EndTime "14:40:16 PDT"]
[Termination "GlavkonVVS won by resignation"]

1. e4 {[%clk 0:03:00.9]} 1... Nf6 {[%clk 0:02:59.8]} 2. e5 {[%clk 0:02:59.8]}
2... Nd5 {[%clk 0:03:00]} 3. d4 {[%clk 0:03:00.4]} 3... d6 {[%clk 0:03:00.2]} 4.
Nf3 {[%clk 0:02:59.9]} 4... Bg4 {[%clk 0:02:59.6]} 5. exd6 {[%clk 0:02:55.2]}
5... cxd6 {[%clk 0:02:59.3]} 6. c4 {[%clk 0:02:54.3]} 6... Nb6 {[%clk 0:02:59]}
7. Nc3 {[%clk 0:02:51.7]} 7... e6 {[%clk 0:02:59.1]} 8. Be2 {[%clk 0:02:49.9]}
8... Be7 {[%clk 0:02:59.1]} 9. O-O {[%clk 0:02:49.3]} 9... O-O {[%clk
0:02:59.1]} 10. h3 {[%clk 0:02:49.9]} 10... Bh5 {[%clk 0:02:57.7]} 11. b3 {[%clk
0:02:50.1]} 11... d5 {[%clk 0:02:57.1]} 12. c5 {[%clk 0:02:46.2]} 12... Bxf3
{[%clk 0:02:57.5]} 13. Bxf3 {[%clk 0:02:45.5]} 13... Nc8 {[%clk 0:02:58]} 14.
Bf4 {[%clk 0:02:43.3]} 14... Nc6 {[%clk 0:02:58.4]} 15. Nb5 {[%clk 0:02:40.2]}
15... a6 {[%clk 0:02:54.7]} 16. Nc3 {[%clk 0:02:39.5]} 16... Bf6 {[%clk
0:02:53.7]} 17. Ne2 {[%clk 0:02:32.4]} 17... N8e7 {[%clk 0:02:53.4]} 18. Qd2
{[%clk 0:02:25.4]} 18... Nf5 {[%clk 0:02:53]} 19. Be3 {[%clk 0:02:25.7]} 19...
b6 {[%clk 0:02:49.2]} 20. Rac1 {[%clk 0:02:22.5]} 20... bxc5 {[%clk 0:02:45.2]}
21. Rxc5 {[%clk 0:02:22.9]} 21... Qb6 {[%clk 0:02:43.5]} 22. Rfc1 {[%clk
0:02:18.1]} 22... Nce7 {[%clk 0:02:37.3]} 23. g4 {[%clk 0:02:08.1]} 23... Nxe3
{[%clk 0:02:36.5]} 24. Qxe3 {[%clk 0:02:03.1]} 24... h6 {[%clk 0:02:33.3]} 25.
R1c2 {[%clk 0:01:58.2]} 25... Rfc8 {[%clk 0:02:25.5]} 26. Nc1 {[%clk 0:01:47.4]}
26... Rxc5 {[%clk 0:02:20]} 27. dxc5 {[%clk 0:01:46.6]} 27... Qa5 {[%clk
0:02:13.7]} 28. Nd3 {[%clk 0:01:41.1]} 28... Rc8 {[%clk 0:02:12.8]} 29. Kg2
{[%clk 0:01:08]} 29... Nc6 {[%clk 0:02:11.5]} 30. Qe1 {[%clk 0:00:50]} 30... Qb5
{[%clk 0:02:04.6]} 31. Nf4 {[%clk 0:00:03.8]} 31... Nd4 {[%clk 0:02:02.2]} 32.
Rc1 {[%clk 0:00:03.6]} 32... Rxc5 {[%clk 0:02:00.6]} 33. Rxc5 {[%clk 0:00:03.4]}
33... Qxc5 {[%clk 0:02:00.6]} 34. Nd3 {[%clk 0:00:02.8]} 34... Qb5 {[%clk
0:02:00]} 35. Ne5 {[%clk 0:00:02.8]} 35... Qb8 {[%clk 0:01:45.1]} 36. Qe4 {[%clk
0:00:02.6]} 36... dxe4 {[%clk 0:01:43.1]} 0-1

[Event "Late-Titled-Tuesday-Blitz-June-18-2024"]
[Site "Chess.com"]
[Date "2024.06.18"]
[Round "4"]
[White "DonJuanEGenaro"]
[Black "Sacbutt"]
[Result "0-1"]
[WhiteElo "1975"]
[BlackElo "2314"]
[TimeControl "180+1"]
[EndTime "14:40:21 PDT"]
[Termination "Sacbutt won on time"]

1. d4 {[%clk 0:02:54]} 1... Nf6 {[%clk 0:02:59]} 2. Nf3 {[%clk 0:02:54]} 2... e6
{[%clk 0:02:59]} 3. e3 {[%clk 0:02:53.4]} 3... b6 {[%clk 0:02:57.7]} 4. c4
{[%clk 0:02:53]} 4... Bb7 {[%clk 0:02:57.6]} 5. Nc3 {[%clk 0:02:52.8]} 5... Bb4
{[%clk 0:02:56.2]} 6. Bd3 {[%clk 0:02:52.5]} 6... O-O {[%clk 0:02:55.7]} 7. Qc2
{[%clk 0:02:46.2]} 7... d5 {[%clk 0:02:52.4]} 8. cxd5 {[%clk 0:02:45.5]} 8...
Qxd5 {[%clk 0:02:47]} 9. O-O {[%clk 0:02:41.5]} 9... Qh5 {[%clk 0:02:44.4]} 10.
e4 {[%clk 0:02:32.3]} 10... Nbd7 {[%clk 0:02:37.6]} 11. a3 {[%clk 0:02:29.1]}
11... Bxc3 {[%clk 0:02:26.2]} 12. bxc3 {[%clk 0:02:28.5]} 12... c5 {[%clk
0:02:26.5]} 13. Bf4 {[%clk 0:02:19.1]} 13... Rac8 {[%clk 0:02:23.9]} 14. Qe2
{[%clk 0:02:17.9]} 14... Rfd8 {[%clk 0:02:11.5]} 15. h3 {[%clk 0:02:02]} 15...
cxd4 {[%clk 0:02:08.2]} 16. cxd4 {[%clk 0:02:00.7]} 16... Qa5 {[%clk 0:02:07.4]}
17. Bd2 {[%clk 0:01:44.6]} 17... Qh5 {[%clk 0:01:55.8]} 18. a4 {[%clk
0:01:28.8]} 18... e5 {[%clk 0:01:52.2]} 19. dxe5 {[%clk 0:01:16.5]} 19... Nxe5
{[%clk 0:01:50.3]} 20. Nxe5 {[%clk 0:01:08.6]} 20... Qxe5 {[%clk 0:01:51.2]} 21.
Rfc1 {[%clk 0:00:18]} 21... Rxc1+ {[%clk 0:01:29.9]} 22. Rxc1 {[%clk 0:00:14.6]}
22... Qd4 {[%clk 0:01:30]} 23. Bc2 {[%clk 0:00:02.7]} 23... h6 {[%clk
0:01:17.4]} 0-1

[Event "Late-Titled-Tuesday-Blitz-June-18-2024"]
[Site "Chess.com"]
[Date "2024.06.18"]
[Round "4"]
[White "LeonardoL2005"]
[Black "crazy_machine"]
[Result "0-1"]
[WhiteElo "2261"]
[BlackElo "2636"]
[TimeControl "180+1"]
[EndTime "14:40:25 PDT"]
[Termination "crazy_machine won by resignation"]

1. e4 {[%clk 0:03:00.9]} 1... c6 {[%clk 0:02:58.4]} 2. Nf3 {[%clk 0:03:00.2]}
2... d5 {[%clk 0:02:59.3]} 3. Nc3 {[%clk 0:03:00.6]} 3... Bg4 {[%clk 0:02:57.6]}
4. h3 {[%clk 0:03:00.3]} 4... Bxf3 {[%clk 0:02:58.1]} 5. Qxf3 {[%clk 0:03:00.1]}
5... Nf6 {[%clk 0:02:57.6]} 6. d3 {[%clk 0:02:59.1]} 6... e6 {[%clk 0:02:57.6]}
7. g3 {[%clk 0:02:59.6]} 7... Nbd7 {[%clk 0:02:56]} 8. Bg2 {[%clk 0:02:59.7]}
8... Bc5 {[%clk 0:02:55.1]} 9. O-O {[%clk 0:02:58.3]} 9... O-O {[%clk
0:02:55.4]} 10. Qe2 {[%clk 0:02:58]} 10... Ne8 {[%clk 0:02:49.8]} 11. Kh2 {[%clk
0:02:58]} 11... Bd4 {[%clk 0:02:48.5]} 12. f4 {[%clk 0:02:57.3]} 12... Nd6
{[%clk 0:02:36.8]} 13. f5 {[%clk 0:02:56.5]} 13... Be5 {[%clk 0:01:52.8]} 14.
Bf4 {[%clk 0:02:51.7]} 14... Bxf4 {[%clk 0:01:51.3]} 15. Rxf4 {[%clk 0:02:51.3]}
15... e5 {[%clk 0:01:47.3]} 16. Rh4 {[%clk 0:02:51.4]} 16... d4 {[%clk
0:01:45.8]} 17. Nb1 {[%clk 0:02:48]} 17... Qb6 {[%clk 0:01:39.2]} 18. b3 {[%clk
0:02:47.1]} 18... a5 {[%clk 0:01:39.7]} 19. Nd2 {[%clk 0:02:47.5]} 19... a4
{[%clk 0:01:38.5]} 20. g4 {[%clk 0:02:41]} 20... axb3 {[%clk 0:01:38]} 21. cxb3
{[%clk 0:02:39.6]} 21... Qd8 {[%clk 0:01:36.9]} 22. g5 {[%clk 0:02:33.9]} 22...
Qxg5 {[%clk 0:01:33.7]} 23. Rg4 {[%clk 0:02:27.9]} 23... Qe3 {[%clk 0:01:32.2]}
24. Qd1 {[%clk 0:02:26.5]} 24... Qxd3 {[%clk 0:01:30.5]} 25. Rg3 {[%clk
0:02:24.1]} 25... Qb5 {[%clk 0:01:11.7]} 26. Bf1 {[%clk 0:02:18.2]} 26... Qb4
{[%clk 0:01:05.8]} 27. Nc4 {[%clk 0:02:15.4]} 27... Nxe4 {[%clk 0:01:00]} 28.
Rg2 {[%clk 0:02:14.2]} 28... Nef6 {[%clk 0:00:50.2]} 29. Qd3 {[%clk 0:02:09.9]}
29... Kh8 {[%clk 0:00:40.5]} 30. Qg3 {[%clk 0:02:07.3]} 30... Rg8 {[%clk
0:00:39.2]} 31. Be2 {[%clk 0:01:59.4]} 31... b5 {[%clk 0:00:36.8]} 32. Nxe5
{[%clk 0:01:58.9]} 32... Nxe5 {[%clk 0:00:32.7]} 33. Qxe5 {[%clk 0:01:59.8]}
33... Rad8 {[%clk 0:00:32.6]} 34. Kh1 {[%clk 0:01:55.9]} 34... d3 {[%clk
0:00:32.4]} 35. Bf3 {[%clk 0:01:49.3]} 35... Qd4 {[%clk 0:00:32.1]} 36. Qxd4
{[%clk 0:01:44.5]} 36... Rxd4 {[%clk 0:00:32.1]} 37. Bxc6 {[%clk 0:01:44.6]}
37... d2 {[%clk 0:00:26.3]} 38. Rd1 {[%clk 0:01:44.8]} 38... Rgd8 {[%clk
0:00:26.7]} 39. Bxb5 {[%clk 0:01:43.2]} 39... Ne4 {[%clk 0:00:27]} 40. Bc6
{[%clk 0:01:39.9]} 40... Nc3 {[%clk 0:00:27.1]} 41. Rdxd2 {[%clk 0:01:38.5]}
41... Rxd2 {[%clk 0:00:25.5]} 42. Rxd2 {[%clk 0:01:39]} 42... Rxd2 {[%clk
0:00:25.9]} 43. a4 {[%clk 0:01:39.6]} 43... Rb2 {[%clk 0:00:23.9]} 44. a5 {[%clk
0:01:37.9]} 44... Rxb3 {[%clk 0:00:23.3]} 45. a6 {[%clk 0:01:38.8]} 45... Ra3
{[%clk 0:00:23.8]} 46. Bb7 {[%clk 0:01:38.6]} 46... Nb5 {[%clk 0:00:24.1]} 47.
Kg2 {[%clk 0:01:38.6]} 47... Nc7 {[%clk 0:00:24.7]} 48. Kf2 {[%clk 0:01:39.5]}
48... Nxa6 {[%clk 0:00:25.3]} 49. Ke2 {[%clk 0:01:40.4]} 49... Nc5 {[%clk
0:00:25.9]} 50. Bd5 {[%clk 0:01:39.5]} 50... Rxh3 {[%clk 0:00:25.6]} 51. Bxf7
{[%clk 0:01:40.1]} 51... Ra3 {[%clk 0:00:24.1]} 0-1

[Event "Late-Titled-Tuesday-Blitz-June-18-2024"]
[Site "Chess.com"]
[Date "2024.06.18"]
[Round "4"]
[White "cedchass2006"]
[Black "shirovin"]
[Result "1-0"]
[WhiteElo "2328"]
[BlackElo "2113"]
[TimeControl "180+1"]
[EndTime "14:40:29 PDT"]
[Termination "cedchass2006 won on time"]

1. c3 {[%clk 0:03:00.9]} 1... d5 {[%clk 0:02:55.1]} 2. d4 {[%clk 0:02:58.7]}
2... f5 {[%clk 0:02:55.2]} 3. Nf3 {[%clk 0:02:58.3]} 3... Nf6 {[%clk 0:02:55.6]}
4. Bg5 {[%clk 0:02:47.9]} 4... e6 {[%clk 0:02:52.4]} 5. e3 {[%clk 0:02:47.7]}
5... Bd6 {[%clk 0:02:51.4]} 6. Ne5 {[%clk 0:02:46.3]} 6... O-O {[%clk
0:02:45.2]} 7. Nd2 {[%clk 0:02:45.8]} 7... Nbd7 {[%clk 0:02:37.3]} 8. Ndf3
{[%clk 0:02:44.7]} 8... Qe8 {[%clk 0:02:10.7]} 9. Bd3 {[%clk 0:02:42.3]} 9...
Ne4 {[%clk 0:01:58.5]} 10. Bf4 {[%clk 0:02:40.2]} 10... Nxe5 {[%clk 0:01:45.6]}
11. Bxe5 {[%clk 0:02:38.5]} 11... Bd7 {[%clk 0:01:36.5]} 12. O-O {[%clk
0:02:31]} 12... Bxe5 {[%clk 0:01:35.1]} 13. Nxe5 {[%clk 0:02:30]} 13... b6
{[%clk 0:01:27.2]} 14. Qc2 {[%clk 0:02:30.4]} 14... Bb5 {[%clk 0:01:18.4]} 15.
f3 {[%clk 0:02:26.7]} 15... Bxd3 {[%clk 0:01:17]} 16. Qxd3 {[%clk 0:02:27.6]}
16... Nf6 {[%clk 0:01:15.5]} 17. c4 {[%clk 0:02:26.2]} 17... Rd8 {[%clk
0:01:13.5]} 18. Rac1 {[%clk 0:02:24.8]} 18... Nd7 {[%clk 0:01:02.3]} 19. Nc6
{[%clk 0:02:24.7]} 19... Ra8 {[%clk 0:01:00]} 20. cxd5 {[%clk 0:02:24.9]} 20...
exd5 {[%clk 0:00:58.1]} 21. Qb3 {[%clk 0:02:25.3]} 21... Nf6 {[%clk 0:00:50.1]}
22. Nb4 {[%clk 0:02:25]} 22... Rc8 {[%clk 0:00:43.4]} 23. Nxd5 {[%clk
0:02:19.6]} 23... Kh8 {[%clk 0:00:27.7]} 24. Nxf6 {[%clk 0:01:53.2]} 24... Rxf6
{[%clk 0:00:24.1]} 25. Rfe1 {[%clk 0:01:50.7]} 25... Re6 {[%clk 0:00:23]} 26.
Rc2 {[%clk 0:01:42.7]} 26... c6 {[%clk 0:00:15.2]} 27. Rce2 {[%clk 0:01:42.7]}
27... Rd8 {[%clk 0:00:13.4]} 28. Kf2 {[%clk 0:01:42.4]} 28... Qe7 {[%clk
0:00:13.1]} 29. Qc3 {[%clk 0:01:39.6]} 29... Qh4+ {[%clk 0:00:11]} 30. Kg1
{[%clk 0:01:39.5]} 30... Rh6 {[%clk 0:00:10.3]} 31. h3 {[%clk 0:01:39.4]} 31...
Rg6 {[%clk 0:00:09.1]} 32. e4 {[%clk 0:01:28.3]} 32... Qxh3 {[%clk 0:00:07.8]}
33. exf5 {[%clk 0:01:24.5]} 33... Rf6 {[%clk 0:00:03.4]} 34. gxh3 {[%clk
0:01:23.3]} 1-0

[Event "Late-Titled-Tuesday-Blitz-June-18-2024"]
[Site "Chess.com"]
[Date "2024.06.18"]
[Round "4"]
[White "Cuchulin"]
[Black "Chaubunagungamaug1"]
[Result "0-1"]
[WhiteElo "2265"]
[BlackElo "2471"]
[TimeControl "180+1"]
[EndTime "14:40:32 PDT"]
[Termination "Chaubunagungamaug1 won by resignation"]

1. d4 {[%clk 0:03:00.9]} 1... d5 {[%clk 0:02:58.8]} 2. Bf4 {[%clk 0:03:00.9]}
2... Nf6 {[%clk 0:02:58.1]} 3. e3 {[%clk 0:03:01.3]} 3... c5 {[%clk 0:02:58.3]}
4. Nc3 {[%clk 0:02:59.5]} 4... cxd4 {[%clk 0:02:52.5]} 5. exd4 {[%clk
0:02:59.1]} 5... a6 {[%clk 0:02:52.6]} 6. Nf3 {[%clk 0:02:58.6]} 6... Bg4 {[%clk
0:02:51.2]} 7. Be2 {[%clk 0:02:58.6]} 7... Nc6 {[%clk 0:02:50.4]} 8. O-O {[%clk
0:02:56.7]} 8... e6 {[%clk 0:02:50.1]} 9. h3 {[%clk 0:02:56.6]} 9... Bxf3 {[%clk
0:02:49.9]} 10. Bxf3 {[%clk 0:02:54.4]} 10... Bd6 {[%clk 0:02:50.1]} 11. Bxd6
{[%clk 0:02:52.9]} 11... Qxd6 {[%clk 0:02:50.1]} 12. Ne2 {[%clk 0:02:52]} 12...
O-O {[%clk 0:02:49.8]} 13. c3 {[%clk 0:02:50.3]} 13... Rac8 {[%clk 0:02:41.8]}
14. a4 {[%clk 0:02:47.2]} 14... Rfd8 {[%clk 0:02:27.3]} 15. Nc1 {[%clk
0:02:46.9]} 15... Nd7 {[%clk 0:02:09]} 16. Nd3 {[%clk 0:02:46.4]} 16... b5
{[%clk 0:01:59.8]} 17. axb5 {[%clk 0:02:45.3]} 17... axb5 {[%clk 0:02:00.7]} 18.
b4 {[%clk 0:02:45.1]} 18... e5 {[%clk 0:01:54]} 19. dxe5 {[%clk 0:02:35.5]}
19... Ndxe5 {[%clk 0:01:54.9]} 20. Nc5 {[%clk 0:02:35.2]} 20... d4 {[%clk
0:01:19.4]} 21. Bxc6 {[%clk 0:02:19.6]} 21... Qxc6 {[%clk 0:01:02.4]} 22. cxd4
{[%clk 0:02:16]} 22... Nc4 {[%clk 0:00:44.4]} 23. Ra7 {[%clk 0:02:07.8]} 23...
Qf6 {[%clk 0:00:39.5]} 24. d5 {[%clk 0:02:03.4]} 24... Nb6 {[%clk 0:00:34.5]}
25. Ra6 {[%clk 0:01:58.2]} 25... Rxd5 {[%clk 0:00:28.2]} 26. Qe2 {[%clk
0:01:25.4]} 26... Qc6 {[%clk 0:00:19.9]} 27. Re1 {[%clk 0:01:22.7]} 27... Rdd8
{[%clk 0:00:13.3]} 28. Qe7 {[%clk 0:01:16.7]} 28... Re8 {[%clk 0:00:11.4]} 29.
Rxb6 {[%clk 0:01:11.9]} 29... Rxe7 {[%clk 0:00:10.2]} 30. Rxe7 {[%clk
0:01:03.2]} 30... Qxb6 {[%clk 0:00:10.1]} 0-1

[Event "Late-Titled-Tuesday-Blitz-June-18-2024"]
[Site "Chess.com"]
[Date "2024.06.18"]
[Round "4"]
[White "Msb2"]
[Black "RealPerangel"]
[Result "1-0"]
[WhiteElo "3068"]
[BlackElo "2759"]
[TimeControl "180+1"]
[EndTime "14:40:33 PDT"]
[Termination "Msb2 won by resignation"]

1. d4 {[%clk 0:03:00.9]} 1... c5 {[%clk 0:02:59.9]} 2. d5 {[%clk 0:03:00.7]}
2... Nf6 {[%clk 0:03:00.6]} 3. c4 {[%clk 0:03:01]} 3... g6 {[%clk 0:03:01.1]} 4.
Nc3 {[%clk 0:03:01.3]} 4... Bg7 {[%clk 0:03:01.8]} 5. e4 {[%clk 0:03:01.6]} 5...
O-O {[%clk 0:03:02.5]} 6. h3 {[%clk 0:03:02.1]} 6... d6 {[%clk 0:03:03.2]} 7.
Nf3 {[%clk 0:03:02.5]} 7... e6 {[%clk 0:03:04]} 8. Bd3 {[%clk 0:03:03]} 8...
exd5 {[%clk 0:03:04.7]} 9. cxd5 {[%clk 0:03:03.9]} 9... b5 {[%clk 0:03:04.7]}
10. Nxb5 {[%clk 0:03:04.6]} 10... Nxe4 {[%clk 0:03:04.2]} 11. Bxe4 {[%clk
0:03:05.5]} 11... Re8 {[%clk 0:03:04.1]} 12. Ng5 {[%clk 0:03:06.2]} 12... Qa5+
{[%clk 0:03:03.7]} 13. Nc3 {[%clk 0:03:06.5]} 13... Ba6 {[%clk 0:03:04]} 14. Bd2
{[%clk 0:02:58.2]} 14... Nd7 {[%clk 0:02:54.6]} 15. a4 {[%clk 0:02:46.7]} 15...
Qb4 {[%clk 0:02:43.5]} 16. Nb5 {[%clk 0:02:15.4]} 16... Rxe4+ {[%clk 0:02:42.5]}
17. Nxe4 {[%clk 0:02:16.3]} 17... Qxe4+ {[%clk 0:02:42.7]} 18. Kf1 {[%clk
0:02:17.1]} 18... Bxb2 {[%clk 0:02:35.5]} 19. Rb1 {[%clk 0:02:05.3]} 19... Be5
{[%clk 0:02:26.9]} 20. Kg1 {[%clk 0:02:02.4]} 20... Bxb5 {[%clk 0:02:11.7]} 21.
axb5 {[%clk 0:02:00]} 21... Qxd5 {[%clk 0:02:08.3]} 22. Be3 {[%clk 0:01:59.6]}
22... Qxd1+ {[%clk 0:02:03.2]} 23. Rxd1 {[%clk 0:02:00.5]} 23... Rb8 {[%clk
0:02:03.4]} 24. f4 {[%clk 0:01:58.9]} 24... Bd4 {[%clk 0:01:53.6]} 25. Bxd4
{[%clk 0:01:57.3]} 25... cxd4 {[%clk 0:01:54.5]} 26. Rxd4 {[%clk 0:01:58]} 26...
Rxb5 {[%clk 0:01:54.7]} 27. Rxd6 {[%clk 0:01:58.2]} 27... Nc5 {[%clk 0:01:54.7]}
28. Kh2 {[%clk 0:01:56.1]} 28... Ne6 {[%clk 0:01:46.2]} 29. Rf1 {[%clk
0:01:49.2]} 29... a5 {[%clk 0:01:45.7]} 30. Ra6 {[%clk 0:01:48.2]} 30... h5
{[%clk 0:01:45.1]} 31. Ra7 {[%clk 0:01:45.2]} 31... h4 {[%clk 0:01:42.2]} 32. f5
{[%clk 0:01:33.4]} 32... gxf5 {[%clk 0:01:40.9]} 33. Ra1 {[%clk 0:01:33.2]}
33... Rb2 {[%clk 0:01:22.9]} 34. R7xa5 {[%clk 0:01:30.3]} 34... Nd4 {[%clk
0:01:14.4]} 35. Rd1 {[%clk 0:01:21.8]} 35... Nf3+ {[%clk 0:00:51.9]} 36. Kh1
{[%clk 0:01:21.9]} 36... Ng5 {[%clk 0:00:50.7]} 37. Rxf5 {[%clk 0:01:14.3]}
37... Ne4 {[%clk 0:00:51.6]} 38. Kh2 {[%clk 0:01:09.8]} 38... Kg7 {[%clk
0:00:45.7]} 39. Rf4 {[%clk 0:01:07.7]} 39... Ng5 {[%clk 0:00:45.9]} 40. Rdf1
{[%clk 0:01:04.4]} 40... Rxg2+ {[%clk 0:00:38.2]} 41. Kxg2 {[%clk 0:01:03.9]}
41... Nxh3 {[%clk 0:00:38.9]} 42. Kxh3 {[%clk 0:01:03.4]} 42... f5 {[%clk
0:00:38.9]} 43. Kxh4 {[%clk 0:01:03.8]} 1-0